fUSD/lending_fUSD_20240907
["ID","MTS","AMOUNT","RATE_DAILY","PERIOD"]
[337513764,1725727864080,-645.83,0.00014995,2]
[337513765,1725727864090,-1003.77,0.00014995,2]
[337513766,1725727864099,-2236.4,0.00014995,2]
[337513767,1725727864109,-500.0,0.00014995,2]
[337513768,1725727864119,-583.73,0.00014995,2]
[337513769,1725727864128,-5626.43,0.00014995,2]
[337513770,1725727864138,-13510.44,0.00014995,2]
[337513771,1725727864148,-1472.56,0.00014995,2]
[337513772,1725727864158,-1656.74,0.00014995,2]
[337513773,1725727864169,-1519.69,0.00014995,2]
[337513774,1725727864178,-500.0,0.00014995,2]
[337513775,1725727864188,-168.101115,0.00014996,2]
[337513776,1725727864198,-168.101115,0.00014996,2]
[337513777,1725727864207,-500.0,0.00014996,2]
[337513778,1725727864216,-500.0,0.00014996,2]
[337513779,1725727864226,-500.0,0.00014996,2]
[337513780,1725727864235,-500.0,0.00014996,2]
[337513781,1725727864244,-500.0,0.00014996,2]
[337513782,1725727864254,-500.0,0.00014996,2]
[337513783,1725727864263,-500.0,0.00014996,2]
[337513784,1725727864273,-614.2802921,0.00014996,2]
[337513785,1725727864282,-500.0,0.00014996,2]
[337513786,1725727864292,-500.0,0.00014996,2]
[337513787,1725727864301,-522.49548425,0.00014996,2]
[337513788,1725727864311,-151.0,0.00014996,2]
[337513789,1725727864320,-151.0,0.00014996,2]
[337513790,1725727864329,-151.0,0.00014996,2]
[337513791,1725727864339,-151.0,0.00014996,2]
[337513792,1725727864349,-151.0,0.00014996,2]
[337513793,1725727864359,-151.0,0.00014996,2]
[337513794,1725727864369,-151.0,0.00014996,2]
[337513795,1725727864380,-151.0,0.00014996,2]
[337513796,1725727864390,-151.0,0.00014996,2]
[337513797,1725727864401,-151.0,0.00014996,2]
[337513798,1725727864411,-151.0,0.00014996,2]
[337513799,1725727864421,-171.5181,0.00014996,2]
[337513800,1725727864431,-171.5181,0.00014996,2]
[337513801,1725727864441,-151.0,0.00014996,2]
[337513802,1725727864451,-168.101115,0.00014997,2]
[337513803,1725727864461,-168.101115,0.00014997,2]
[337513804,1725727864471,-168.101115,0.00014997,2]
[337513805,1725727864481,-1242.9,0.00014997,2]
[337513806,1725727864492,-1242.9,0.00014997,2]
[337513807,1725727864502,-1242.9,0.00014997,2]
[337513808,1725727864512,-1242.9,0.00014997,2]
[337513809,1725727864523,-1242.9,0.00014997,2]
[337513810,1725727864533,-1242.9,0.00014997,2]
[337513811,1725727864543,-809.14,0.00014997,2]
[337513812,1725727864552,-1243.13521411,0.00014997,2]
[337513813,1725727864562,-809.14,0.00014997,2]
[337513814,1725727864572,-809.14,0.00014997,2]
[337513815,1725727864583,-809.14,0.00014997,2]
[337513816,1725727864593,-809.14,0.00014997,2]
[337513817,1725727864603,-809.14,0.00014997,2]
[337513818,1725727864613,-809.27181101,0.00014997,2]
[337513819,1725727864624,-675.99,0.00014997,2]
[337513820,1725727864634,-675.99,0.00014997,2]
[337513821,1725727864644,-675.99,0.00014997,2]
[337513822,1725727864654,-675.99,0.00014997,2]
[337513823,1725727864664,-675.99,0.00014997,2]
[337513824,1725727864674,-675.99,0.00014997,2]
[337513825,1725727864683,-676.13150713,0.00014997,2]
[337513826,1725727864694,-555.8,0.00014997,2]
[337513827,1725727864703,-555.8,0.00014997,2]
[337513828,1725727864713,-555.8,0.00014997,2]
[337513829,1725727864722,-555.8,0.00014997,2]
[337513830,1725727864731,-555.8,0.00014997,2]
[337513831,1725727864741,-555.8,0.00014997,2]
[337513832,1725727864751,-555.95,0.00014997,2]
[337513833,1725727864762,-3028.98,0.00014997,2]
[337513834,1725727864772,-3028.98,0.00014997,2]
[337513835,1725727864782,-3028.98,0.00014997,2]
[337513836,1725727864792,-3028.98,0.00014997,2]
[337513837,1725727864802,-3028.98,0.00014997,2]
[337513838,1725727864812,-3028.98,0.00014997,2]
[337513839,1725727864822,-3029.1,0.00014997,2]
[337513840,1725727864837,-5973.19,0.00014997,2]
[337513841,1725727864850,-5973.19,0.00014997,2]
[337513842,1725727864859,-5973.19,0.00014997,2]
[337513843,1725727864868,-5973.19,0.00014997,2]
[337513844,1725727864878,-5973.19,0.00014997,2]
[337513845,1725727864890,-5973.19,0.00014997,2]
[337513846,1725727864901,-1212.57,0.00014997,2]
[337513847,1725727864910,-5973.21761032,0.00014997,2]
[337513848,1725727864920,-1212.57,0.00014997,2]
[337513849,1725727864930,-1212.57,0.00014997,2]
[337513850,1725727864940,-1212.57,0.00014997,2]
[337513851,1725727864949,-1212.57,0.00014997,2]
[337513852,1725727864960,-1212.57,0.00014997,2]
[337513853,1725727864970,-1212.77,0.00014997,2]
[337513854,1725727864980,-3208.0,0.00014997,2]
[337513855,1725727864991,-3208.0,0.00014997,2]
[337513856,1725727865001,-1363.45,0.00014997,2]
[337513857,1725727865011,-3208.0,0.00014997,2]
[337513858,1725727865021,-1363.45,0.00014997,2]
[337513859,1725727865031,-3208.0,0.00014997,2]
[337513860,1725727865041,-1363.45,0.00014997,2]
[337513861,1725727865050,-3208.0,0.00014997,2]
[337513862,1725727865060,-1363.45,0.00014997,2]
[337513863,1725727865070,-3208.0,0.00014997,2]
[337513864,1725727865082,-1363.45,0.00014997,2]
[337513865,1725727865091,-3208.04754751,0.00014997,2]
[337513866,1725727865101,-1363.45,0.00014997,2]
[337513867,1725727865111,-1363.60485212,0.00014997,2]
[337513868,1725727865121,-11695.67,0.00014997,2]
[337513869,1725727865131,-11695.67,0.00014997,2]
[337513870,1725727865140,-11695.67,0.00014997,2]
[337513871,1725727865151,-11695.67,0.00014997,2]
[337513872,1725727865161,-11695.67,0.00014997,2]
[337513873,1725727865171,-11695.67,0.00014997,2]
[337513874,1725727865180,-11695.67763367,0.00014997,2]
[337513875,1725727865190,-500.0,0.00014997,2]
[337513876,1725727865200,-500.0,0.00014997,2]
[337513877,1725727865209,-500.0,0.00014997,2]
[337513878,1725727865219,-500.0,0.00014997,2]
[337513879,1725727865229,-500.0,0.00014997,2]
[337513880,1725727865238,-500.0,0.00014997,2]
[337513881,1725727865248,-185.52,0.00014997,2]
[337513882,1725727865258,-1206.77,0.00014997,2]
[337513883,1725727865267,-1206.77,0.00014997,2]
[337513884,1725727865277,-3101.94,0.00014997,2]
[337513885,1725727865287,-3101.94,0.00014997,2]
[337513886,1725727865297,-1206.77,0.00014997,2]
[337513887,1725727865307,-3101.94,0.00014997,2]
[337513888,1725727865317,-1206.77,0.00014997,2]
[337513889,1725727865327,-1206.77,0.00014997,2]
[337513890,1725727865342,-3101.94,0.00014997,2]
[337513891,1725727865351,-1206.77,0.00014997,2]
[337513892,1725727865362,-3101.94,0.00014997,2]
[337513893,1725727865371,-1206.83,0.00014997,2]
[337513894,1725727865381,-3101.94,0.00014997,2]
[337513895,1725727865391,-3102.15,0.00014997,2]
[337513896,1725727865401,-1003.77,0.00014997,2]
[337513897,1725727865410,-1003.77,0.00014997,2]
[337513898,1725727865420,-1003.77,0.00014997,2]
[337513899,1725727865429,-1003.77,0.00014997,2]
[337513900,1725727865439,-1003.77,0.00014997,2]
[337513901,1725727865449,-1003.77,0.00014997,2]
[337513902,1725727865459,-500.0,0.00014997,2]
[337513903,1725727865469,-1003.77,0.00014997,2]
[337513904,1725727865479,-500.0,0.00014997,2]
[337513905,1725727865489,-500.0,0.00014997,2]
[337513906,1725727865499,-500.0,0.00014997,2]
[337513907,1725727865510,-500.0,0.00014997,2]
[337513908,1725727865520,-352.28,0.00014997,2]
[337513909,1725727865530,-583.73,0.00014997,2]
[337513910,1725727865540,-583.73,0.00014997,2]
[337513911,1725727865550,-583.73,0.00014997,2]
[337513912,1725727865559,-583.73,0.00014997,2]
[337513913,1725727865569,-583.73,0.00014997,2]
[337513914,1725727865581,-583.73,0.00014997,2]
[337513915,1725727865591,-583.81012605,0.00014997,2]
[337513916,1725727865600,-13510.44,0.00014997,2]
[337513917,1725727865611,-13510.44,0.00014997,2]
[337513918,1725727865620,-13510.44,0.00014997,2]
[337513919,1725727865630,-13510.44,0.00014997,2]
[337513920,1725727865640,-13510.44,0.00014997,2]
[337513921,1725727865649,-13510.44,0.00014997,2]
[337513922,1725727865659,-13510.44000001,0.00014997,2]
[337513923,1725727865669,-1519.69,0.00014997,2]
[337513924,1725727865678,-1519.69,0.00014997,2]
[337513925,1725727865789,-1519.69,0.00014997,2]
[337513926,1725727865802,-1519.69,0.00014997,2]
[337513927,1725727865813,-1519.69,0.00014997,2]
[337513928,1725727865823,-1519.69,0.00014997,2]
[337513929,1725727865834,-1519.77,0.00014997,2]
[337513930,1725727865843,-500.0,0.00014998,2]
[337513931,1725727865853,-500.0,0.00014998,2]
[337513932,1725727865862,-500.0,0.00014998,2]
[337513933,1725727865871,-411.53,0.00014998,2]
[337513934,1725727865881,-886.34,0.00014998,2]
[337513935,1725727865895,-886.34,0.00014998,2]
[337513936,1725727865904,-886.34,0.00014998,2]
[337513937,1725727865914,-886.34,0.00014998,2]
[337513938,1725727865926,-886.34,0.00014998,2]
[337513939,1725727865936,-500.0,0.00014998,2]
[337513940,1725727865945,-500.0,0.00014998,2]
[337513941,1725727865954,-500.0,0.00014998,2]
[337513942,1725727865963,-500.0,0.00014998,2]
[337513943,1725727865973,-500.0,0.00014998,2]
[337513944,1725727865982,-626.04,0.00014998,2]
[337513945,1725727865991,-626.04,0.00014998,2]
[337513946,1725727866002,-626.04,0.00014998,2]
[337513947,1725727866012,-626.04,0.00014998,2]
[337513948,1725727866021,-626.04,0.00014998,2]
[337513949,1725727866030,-1847.07,0.00014998,2]
[337513950,1725727866040,-1847.07,0.00014998,2]
[337513951,1725727866049,-1847.07,0.00014998,2]
[337513952,1725727866059,-1847.07,0.00014998,2]
[337513953,1725727866069,-1847.07,0.00014998,2]
[337513954,1725727866080,-1080.93,0.00014998,2]
[337513955,1725727866089,-1080.93,0.00014998,2]
[337513956,1725727866099,-1080.93,0.00014998,2]
[337513957,1725727866108,-1080.93,0.00014998,2]
[337513958,1725727866118,-1080.93,0.00014998,2]
[337513959,1725727866127,-500.0,0.00014998,2]
[337513960,1725727866136,-500.0,0.00014998,2]
[337513961,1725727866145,-500.0,0.00014998,2]
[337513962,1725727866155,-586.58,0.00014998,2]
[337513963,1725727866164,-1057.19,0.00014998,2]
[337513964,1725727866174,-1057.19,0.00014998,2]
[337513965,1725727866183,-1057.19,0.00014998,2]
[337513966,1725727866192,-1057.19,0.00014998,2]
[337513967,1725727866201,-1057.19,0.00014998,2]
[337513968,1725727866210,-500.0,0.00014998,2]
[337513969,1725727866219,-500.0,0.00014998,2]
[337513970,1725727866229,-500.0,0.00014998,2]
[337513971,1725727866239,-500.0,0.00014998,2]
[337513972,1725727866248,-500.0,0.00014998,2]
[337513973,1725727866257,-577.46,0.00014998,2]
[337513974,1725727866266,-577.46,0.00014998,2]
[337513975,1725727866275,-577.46,0.00014998,2]
[337513976,1725727866284,-577.46,0.00014998,2]
[337513977,1725727866293,-577.46,0.00014998,2]
[337513978,1725727866303,-621.91,0.00014998,2]
[337513979,1725727866313,-621.91,0.00014998,2]
[337513980,1725727866322,-621.91,0.00014998,2]
[337513981,1725727866333,-621.91,0.00014998,2]
[337513982,1725727866342,-621.91,0.00014998,2]
[337513983,1725727866352,-500.0,0.00014998,2]
[337513984,1725727866361,-500.0,0.00014998,2]
[337513985,1725727866371,-500.0,0.00014998,2]
[337513986,1725727866380,-500.0,0.00014998,2]
[337513987,1725727866391,-500.0,0.00014998,2]
[337513988,1725727866400,-500.0,0.00014998,2]
[337513989,1725727866409,-500.0,0.00014998,2]
[337513990,1725727866418,-500.0,0.00014998,2]
[337513991,1725727866427,-483.9,0.00014998,2]
[337513992,1725727866436,-392.28,0.00014998,2]
[337513993,1725727866446,-500.0,0.00014998,2]
[337513994,1725727866455,-500.0,0.00014998,2]
[337513995,1725727866465,-500.0,0.00014998,2]
[337513996,1725727866474,-500.0,0.00014998,2]
[337513997,1725727866483,-500.0,0.00014998,2]
[337513998,1725727866492,-967.74,0.00014998,2]
[337513999,1725727866501,-967.74,0.00014998,2]
[337514000,1725727866510,-967.74,0.00014998,2]
[337514001,1725727866520,-967.74,0.00014998,2]
[337514002,1725727866529,-967.74,0.00014998,2]
[337514003,1725727866539,-464.70610347,0.00014998,2]
[337514004,1725727866548,-770.77,0.00014998,2]
[337514005,1725727866557,-770.77,0.00014998,2]
[337514006,1725727866567,-770.77,0.00014998,2]
[337514007,1725727866576,-770.77,0.00014998,2]
[337514008,1725727866586,-770.77,0.00014998,2]
[337514009,1725727866595,-500.0,0.00014998,2]
[337514010,1725727866604,-500.0,0.00014998,2]
[337514011,1725727866614,-500.0,0.00014998,2]
[337514012,1725727866623,-452.12,0.00014998,2]
[337514013,1725727866632,-1379.45,0.00014998,2]
[337514014,1725727866645,-1379.45,0.00014998,2]
[337514015,1725727866654,-1379.45,0.00014998,2]
[337514016,1725727866663,-1379.45,0.00014998,2]
[337514017,1725727866672,-1379.45,0.00014998,2]
[337514018,1725727866681,-500.69,0.00014998,2]
[337514019,1725727866690,-1134.27,0.00014998,2]
[337514020,1725727866700,-1134.27,0.00014998,2]
[337514021,1725727866709,-1134.27,0.00014998,2]
[337514022,1725727866718,-1134.27,0.00014998,2]
[337514023,1725727866727,-1134.27,0.00014998,2]
[337514024,1725727866736,-1553.0,0.00014998,2]
[337514025,1725727866745,-1553.0,0.00014998,2]
[337514026,1725727866754,-1553.0,0.00014998,2]
[337514027,1725727866763,-1553.0,0.00014998,2]
[337514028,1725727866772,-1553.0,0.00014998,2]
[337514029,1725727866781,-1683.09,0.00014998,2]
[337514030,1725727866791,-1683.09,0.00014998,2]
[337514031,1725727866802,-1683.09,0.00014998,2]
[337514032,1725727866811,-1683.09,0.00014998,2]
[337514033,1725727866820,-1683.09,0.00014998,2]
[337514034,1725727866830,-625.73,0.00014998,2]
[337514035,1725727866839,-625.73,0.00014998,2]
[337514036,1725727866847,-625.73,0.00014998,2]
[337514037,1725727866856,-625.73,0.00014998,2]
[337514038,1725727866865,-625.73,0.00014998,2]
[337514039,1725727866874,-838.94,0.00014998,2]
[337514040,1725727866885,-838.94,0.00014998,2]
[337514041,1725727866898,-838.94,0.00014998,2]
[337514042,1725727866908,-838.94,0.00014998,2]
[337514043,1725727866917,-838.94,0.00014998,2]
[337514044,1725727866926,-628.76,0.00014998,2]
[337514045,1725727866935,-628.76,0.00014998,2]
[337514046,1725727866944,-628.76,0.00014998,2]
[337514047,1725727866954,-628.76,0.00014998,2]
[337514048,1725727866963,-628.76,0.00014998,2]
[337514049,1725727866972,-1048.34,0.00014998,2]
[337514050,1725727866981,-1048.34,0.00014998,2]
[337514051,1725727866990,-1048.34,0.00014998,2]
[337514052,1725727867000,-1048.34,0.00014998,2]
[337514053,1725727867009,-1048.34,0.00014998,2]
[337514054,1725727867019,-1039.24,0.00014998,2]
[337514055,1725727867028,-1039.24,0.00014998,2]
[337514056,1725727867037,-1039.24,0.00014998,2]
[337514057,1725727867046,-1039.24,0.00014998,2]
[337514058,1725727867055,-1039.24,0.00014998,2]
[337514059,1725727867065,-1039.24,0.00014998,2]
[337514060,1725727867074,-1039.46,0.00014998,2]
[337514061,1725727867084,-872.69,0.00014998,2]
[337514062,1725727867094,-872.69,0.00014998,2]
[337514063,1725727867103,-872.69,0.00014998,2]
[337514064,1725727867112,-872.69,0.00014998,2]
[337514065,1725727867121,-872.69,0.00014998,2]
[337514066,1725727867131,-872.69,0.00014998,2]
[337514067,1725727867140,-872.71,0.00014998,2]
[337514068,1725727867150,-1054.33,0.00014998,2]
[337514069,1725727867159,-1054.33,0.00014998,2]
[337514070,1725727867169,-1054.33,0.00014998,2]
[337514071,1725727867179,-1054.33,0.00014998,2]
[337514072,1725727867188,-1054.33,0.00014998,2]
[337514073,1725727867197,-756.16,0.00014998,2]
[337514074,1725727867206,-2981.99,0.00014998,2]
[337514075,1725727867215,-500.0,0.00014998,2]
[337514076,1725727867226,-500.0,0.00014998,2]
[337514077,1725727867235,-500.0,0.00014998,2]
[337514078,1725727867245,-500.0,0.00014998,2]
[337514079,1725727867254,-500.0,0.00014998,2]
[337514080,1725727867264,-500.0,0.00014998,2]
[337514081,1725727867274,-364.02,0.00014998,2]
[337514082,1725727867283,-656.44,0.00014998,2]
[337514083,1725727867293,-656.44,0.00014998,2]
[337514084,1725727867302,-656.44,0.00014998,2]
[337514085,1725727867311,-656.44,0.00014998,2]
[337514086,1725727867320,-656.44,0.00014998,2]
[337514087,1725727867330,-656.44,0.00014998,2]
[337514088,1725727867339,-857.64,0.00014998,2]
[337514089,1725727867349,-656.44,0.00014998,2]
[337514090,1725727867455,-857.64,0.00014998,2]
[337514091,1725727867465,-656.59189295,0.00014998,2]
[337514092,1725727867475,-857.64,0.00014998,2]
[337514093,1725727867484,-857.64,0.00014998,2]
[337514094,1725727867494,-857.64,0.00014998,2]
[337514095,1725727867504,-857.64,0.00014998,2]
[337514096,1725727867514,-857.68,0.00014998,2]
[337514097,1725727867524,-1056.12,0.00014998,2]
[337514098,1725727867533,-500.0,0.00014998,2]
[337514099,1725727867543,-500.0,0.00014998,2]
[337514100,1725727867552,-282.64,0.00014998,2]
[337514101,1725727867562,-1344.31,0.00014998,2]
[337514102,1725727867571,-500.0,0.00014998,2]
[337514103,1725727867581,-447.9,0.00014998,2]
[337514104,1725727867590,-500.0,0.00014998,2]
[337514105,1725727867599,-554.01,0.00014998,2]
[337514106,1725727867608,-542.9,0.00014998,2]
[337514107,1725727867618,-542.9,0.00014998,2]
[337514108,1725727867627,-542.9,0.00014998,2]
[337514109,1725727867637,-686.67,0.00014998,2]
[337514110,1725727867646,-542.9,0.00014998,2]
[337514111,1725727867656,-686.67,0.00014998,2]
[337514112,1725727867666,-542.9,0.00014998,2]
[337514113,1725727867675,-686.67,0.00014998,2]
[337514114,1725727867684,-542.9,0.00014998,2]
[337514115,1725727867694,-686.67,0.00014998,2]
[337514116,1725727867704,-542.9,0.00014998,2]
[337514117,1725727867714,-686.67,0.00014998,2]
[337514118,1725727867724,-543.0,0.00014998,2]
[337514119,1725727867734,-686.67,0.00014998,2]
[337514120,1725727867743,-686.81,0.00014998,2]
[337514121,1725727867752,-587.43,0.00014998,2]
[337514122,1725727867762,-587.43,0.00014998,2]
[337514123,1725727867771,-587.43,0.00014998,2]
[337514124,1725727867780,-587.43,0.00014998,2]
[337514125,1725727867790,-587.43,0.00014998,2]
[337514126,1725727867800,-572.66,0.00014998,2]
[337514127,1725727867809,-572.66,0.00014998,2]
[337514128,1725727867818,-572.66,0.00014998,2]
[337514129,1725727867827,-8714.63,0.00014998,2]
[337514130,1725727867839,-572.66,0.00014998,2]
[337514131,1725727867848,-8714.63,0.00014998,2]
[337514132,1725727867858,-572.66,0.00014998,2]
[337514133,1725727867867,-8714.63,0.00014998,2]
[337514134,1725727867877,-572.66,0.00014998,2]
[337514135,1725727867888,-8714.63,0.00014998,2]
[337514136,1725727867899,-572.69091899,0.00014998,2]
[337514137,1725727867909,-8714.63,0.00014998,2]
[337514138,1725727867919,-922.97,0.00014998,2]
[337514139,1725727867928,-8714.63,0.00014998,2]
[337514140,1725727867938,-922.97,0.00014998,2]
[337514141,1725727867947,-8714.63,0.00014998,2]
[337514142,1725727867956,-922.97,0.00014998,2]
[337514143,1725727867965,-8714.66004709,0.00014998,2]
[337514144,1725727867975,-922.97,0.00014998,2]
[337514145,1725727867984,-922.97,0.00014998,2]
[337514146,1725727867993,-922.97,0.00014998,2]
[337514147,1725727868003,-923.08,0.00014998,2]
[337514148,1725727868013,-2697.57,0.00014998,2]
[337514149,1725727868022,-2697.57,0.00014998,2]
[337514150,1725727868031,-2697.57,0.00014998,2]
[337514151,1725727868040,-2697.57,0.00014998,2]
[337514152,1725727868049,-2697.57,0.00014998,2]
[337514153,1725727868059,-2697.57,0.00014998,2]
[337514154,1725727868068,-2697.57,0.00014998,2]
[337514155,1725727868078,-2697.767983,0.00014998,2]
[337514156,1725727868088,-3604.89,0.00014998,2]
[337514157,1725727868097,-3604.89,0.00014998,2]
[337514158,1725727868107,-3604.89,0.00014998,2]
[337514159,1725727868117,-500.0,0.00014998,2]
[337514160,1725727868127,-3604.89,0.00014998,2]
[337514161,1725727868137,-3604.89,0.00014998,2]
[337514162,1725727868146,-3604.89,0.00014998,2]
[337514163,1725727868156,-3604.94372931,0.00014998,2]
[337514164,1725727868165,-1862.16,0.00014998,2]
[337514165,1725727868174,-1862.16,0.00014998,2]
[337514166,1725727868183,-1862.16,0.00014998,2]
[337514167,1725727868192,-1862.16,0.00014998,2]
[337514168,1725727868202,-1862.16,0.00014998,2]
[337514169,1725727868211,-5371.75,0.00014998,2]
[337514170,1725727868221,-5371.75,0.00014998,2]
[337514171,1725727868230,-5371.75,0.00014998,2]
[337514172,1725727868240,-5371.75,0.00014998,2]
[337514173,1725727868249,-5371.75,0.00014998,2]
[337514174,1725727868259,-5371.75,0.00014998,2]
[337514175,1725727868268,-3209.42673934,0.00014998,2]
[337514176,1725727868553,-1700.0,0.00014998,2]
[337514177,1725727868565,-462.32326066,0.00014998,2]
[337514178,1725727868574,-1338.06295994,0.00014998,2]
[337514179,1725727868587,-2015.94855758,0.00014998,2]
[337514180,1725727868876,-552.54,0.00014794,2]
[337514181,1725727868887,-90.3,0.00014998,2]
[337514182,1725727869046,-552.54,0.00014794,2]
[337514183,1725727869056,-552.54,0.00014794,2]
[337514184,1725727869065,-552.54,0.00014794,2]
[337514185,1725727869075,-552.54,0.00014794,2]
[337514186,1725727869085,-288.66070866,0.00014794,2]
[337514187,1725727869097,-263.87929134,0.00014794,2]
[337514188,1725727869106,-632.00875347,0.00014794,2]
[337514189,1725727869119,-254.33124653,0.00014794,2]
[337514190,1725727869129,-886.34,0.00014794,2]
[337514191,1725727869139,-552.54,0.00014982,2]
[337514192,1725727869148,-552.54,0.00014987,2]
[337514193,1725727869158,-552.54,0.00014991,2]
[337514194,1725727869167,-552.54,0.00014992,2]
[337514195,1725727869176,-151.0,0.00014993,2]
[337514196,1725727869186,-1423.08875347,0.00014993,2]
[337514197,1725727869197,-271.99999994,0.00014993,2]
[337514198,1725727869208,-3088.91912659,0.00014993,2]
[337514199,1725727869218,-154.301047,0.00014994,2]
[337514200,1725727869227,-4784.00788,0.00014997,2]
[337514201,1725727869237,-1927.67724142,0.00014998,2]
[337514202,1725727869246,-2135.73,0.00014998,2]
[337514203,1725727869255,-2135.73,0.00014998,2]
[337514204,1725727869265,-2135.73,0.00014998,2]
[337514205,1725727869274,-2135.73,0.00014998,2]
[337514206,1725727869283,-2135.73,0.00014998,2]
[337514207,1725727869292,-2135.73,0.00014998,2]
[337514208,1725727869301,-2135.77667841,0.00014998,2]
[337514209,1725727869310,-1915.88,0.00014998,2]
[337514210,1725727869319,-1452.26,0.00014998,2]
[337514211,1725727869328,-1915.88,0.00014998,2]
[337514212,1725727869338,-1452.26,0.00014998,2]
[337514213,1725727869347,-14702.86,0.00014998,2]
[337514214,1725727869356,-1915.88,0.00014998,2]
[337514215,1725727869366,-1452.26,0.00014998,2]
[337514216,1725727869375,-14702.86,0.00014998,2]
[337514217,1725727869384,-1915.88,0.00014998,2]
[337514218,1725727869395,-1452.26,0.00014998,2]
[337514219,1725727869404,-14702.86,0.00014998,2]
[337514220,1725727869414,-1915.88,0.00014998,2]
[337514221,1725727869423,-1452.26,0.00014998,2]
[337514222,1725727869432,-6548.655983,0.00014998,2]
[337514223,1725727869701,-552.54,0.00014992,2]
[337514224,1725727869710,-957.35121034,0.00014998,2]
[337514225,1725727869871,-157.07,0.00013699,2]
[337514226,1725727869881,-886.34,0.00014794,2]
[337514227,1725727869893,-886.34,0.00014794,2]
[337514228,1725727869902,-886.34,0.00014794,2]
[337514229,1725727869912,-886.34,0.00014794,2]
[337514230,1725727869921,-886.34,0.00014794,2]
[337514231,1725727869931,-886.34,0.00014894,2]
[337514232,1725727869940,-886.34,0.00014983,2]
[337514233,1725727869949,-886.34,0.00014987,2]
[337514234,1725727869960,-248.8966393,0.00014991,2]
[337514235,1725727869972,-637.4433607,0.00014991,2]
[337514236,1725727869981,-150.9266293,0.00014992,2]
[337514237,1725727869991,-333.01477701,0.00014992,2]
[337514238,1725727870002,-68.59859369,0.00014992,2]
[337514239,1725727870011,-886.34,0.00014992,2]
[337514240,1725727870021,-886.34,0.00014992,2]
[337514241,1725727870030,-552.54,0.00014993,2]
[337514242,1725727870040,-552.54,0.00014993,2]
[337514243,1725727870049,-552.54,0.00014993,2]
[337514244,1725727870058,-3677.5100139,0.00014994,2]
[337514245,1725727870070,-831.659,0.00014994,2]
[337514246,1725727870087,-886.34,0.00014992,2]
[337514247,1725727870096,-274.8388661,0.00014994,2]
[337514248,1725727870105,-552.54,0.00014994,2]
[337514249,1725727870115,-552.54,0.00014995,2]
[337514250,1725727870127,-4784.00788,0.00014997,2]
[337514251,1725727870137,-552.54,0.00014997,2]
[337514252,1725727870146,-552.54,0.00014997,2]
[337514253,1725727870157,-552.54,0.00014997,2]
[337514254,1725727870257,-552.54,0.00014997,2]
[337514255,1725727870268,-552.54,0.00014997,2]
[337514256,1725727870278,-7196.85280666,0.00014998,2]
[337514257,1725727870287,-1452.26,0.00014998,2]
[337514258,1725727870297,-14702.86,0.00014998,2]
[337514259,1725727870307,-1452.40848457,0.00014998,2]
[337514260,1725727870316,-14702.86,0.00014998,2]
[337514261,1725727870325,-14702.86,0.00014998,2]
[337514262,1725727870334,-14149.3507814,0.00014998,2]
[337514263,1725727870348,-553.65542407,0.00014998,2]